[Event "FIDE WYCC Girls U14 2023"]
[Site "Montesilvano"]
[Date "2023.11.17"]
[Round "5.12"]
[White "Maral Altankhuyag"]
[Black "Zhang, Michelle"]
[Result "*"]
[WhiteElo "1398"]
[BlackElo "1833"]
[Annotator "NA"]
[PlyCount "90"]
[EventDate "2023.11.13"]
[EventType "swiss"]
[EventCountry "ITA"]
[SourceTitle "playchess.com"]
[Source "ChessBase"]
[SourceQuality "1"]
[TimeControl "40/5400+30:1800+30"]

1. d4 {[%emt 0:00:24]} d5 {[%emt 0:00:23]} 2. c4 {[%emt 0:00:18]} e6 {[%emt 0:00:58]} 3. Nf3 {[%emt 0:00:41]} Nf6 {[%emt 0:00:36]} 4. g3 {[%emt 0:00:13]} Be7 {[%emt 0:00:59]} 5. Bg2 {[%emt 0:00:20]} O-O {[%emt 0:01:06]} 6. O-O {[%emt 0:00:54]} c6 {[%emt 0:05:30]} 7. Nbd2 {[%emt 0:02:02]} b6 {[%emt 0:02:57]} 8. Qc2 {[%emt 0:03:17]} Bb7 {[%emt 0:01:41]} 9. Ne5 {[%emt 0:11:56]} Nbd7 {[%emt 0:09:18]} 10. b3 {[%emt 0:02:15]} Rc8 {[%emt 0:02:00]} 11. Nxd7 {[%emt 0:08:22]} Qxd7 {[%emt 0:01:07]} 12. c5 {[%emt 0:01:16]} bxc5 {[%emt 0:06:41]} 13. dxc5 {[%emt 0:00:13]} e5 {[%emt 0:02:18]} 14. Nf3 {[%emt 0:03:05]} Qc7 {[%emt 0:01:42]} 15. Bb2 {[%emt 0:05:03]} Nd7 {[%emt 0:02:15]} 16. b4 {[%emt 0:04:22]} a5 {[%emt 0:03:12]} 17. a3 {[%emt 0:03:08]} Ba6 {[%emt 0:01:38]} 18. Bh3 {[%emt 0:01:22]} e4 {[%emt 0:08:41]} 19. Nd4 {[%emt 0:03:15]} Rb8 {[%emt 0:07:57]} 20. Nf5 {[%emt 0:21:30]} Bf6 {[%emt 0:04:53]} 21. Bxf6 {[%emt 0:00:10]} Nxf6 {[%emt 0:00:22]} 22. Qd2 {[%emt 0:00:16]} Ne8 {[%emt 0:06:09]} 23. f4 {[%emt 0:05:49]} Bc4 {[%emt 0:14:09]} 24. Ne3 {[%emt 0:01:21]} Ba6 {[%emt 0:01:01]} 25. Rf2 {[%emt 0:01:48]} Nf6 {[%emt 0:01:26]} 26. Qd4 {[%emt 0:01:17]} axb4 {[%emt 0:06:13]} 27. axb4 {[%emt 0:00:39]} Bb5 {[%emt 0:00:24]} 28. g4 {[%emt 0:00:31]} Ra8 {[%emt 0:01:43]} 29. Raf1 {[%emt 0:00:11]} Ra2 {[%emt 0:00:41]} 30. g5 {[%emt 0:03:20]} Ne8 {[%emt 0:03:08]} 31. Bg4 {[%emt 0:01:15]} Qa7 {[%emt 0:00:49]} 32. f5 {[%emt 0:02:53]} Qa3 {[%emt 0:01:10]} 33. Rb1 {[%emt 0:00:16]} Qa4 {[%emt 0:01:43]} 34. f6 {[%emt 0:08:25]} g6 {[%emt 0:00:53]} 35. h4 {[%emt 0:00:25]} Ra3 {[%emt 0:00:44]} 36. Bd7 {[%emt 0:01:22]} Qa7 {[%emt 0:01:19]} 37. Bg4 {[%emt 0:01:26]} Qb8 {[%emt 0:00:29]} 38. Kg2 {[%emt 0:00:14]} Nc7 {[%emt 0:00:39]} 39. h5 {[%emt 0:01:30]} Ne6 {[%emt 0:00:23]} 40. Bxe6 {[%emt 0:00:00]} fxe6 {[%emt 0:00:00]} 41. f7+ {[%emt 0:02:07]} Rxf7 {[%emt 0:00:49]} 42. Rxf7 {[%emt 0:00:43]} Kxf7 {[%emt 0:00:07]} 43. Qf6+ {[%emt 0:01:37]} Kg8 {[%emt 0:00:15]} 44. hxg6 {[%emt 0:01:48]} Ra7 {[%emt 0:01:36]} 45. Ng4 {[%emt 0:06:39]} Rg7 {[%emt 0:04:37]} *

[Event "FIDE WYCC Girls U14 2023"]
[Site "Montesilvano"]
[Date "2023.11.17"]
[Round "5.13"]
[White "Dicen, Elis Denele"]
[Black "Andries, Alexia"]
[Result "1-0"]
[ECO "E73"]
[WhiteElo "1976"]
[BlackElo "1750"]
[Annotator "NA"]
[PlyCount "83"]
[EventDate "2023.11.13"]
[EventType "swiss"]
[EventCountry "ITA"]
[SourceTitle "playchess.com"]
[Source "ChessBase"]
[SourceQuality "1"]
[TimeControl "40/5400+30:1800+30"]

1. d4 {[%emt 0:00:03]} Nf6 {[%emt 0:00:07]} 2. c4 {[%emt 0:00:07]} g6 {[%emt 0:00:05]} 3. Nc3 {[%emt 0:00:09]} Bg7 {[%emt 0:00:05]} 4. e4 {[%emt 0:00:13]} d6 {[%emt 0:00:04]} 5. Be2 {[%emt 0:00:20]} O-O {[%emt 0:00:08]} 6. Bg5 {[%emt 0:00:08]} h6 {[%emt 0:01:04]} 7. Be3 {[%emt 0:00:37]} Nbd7 {[%emt 0:00:24]} 8. Qd2 {[%emt 0:01:11]} Kh7 {[%emt 0:00:08]} 9. f3 {[%emt 0:01:30]} e5 {[%emt 0:02:48]} 10. d5 {[%emt 0:01:07]} a6 {[%emt 0:00:09]} 11. O-O-O {[%emt 0:03:47]} b5 {[%emt 0:00:24]} 12. cxb5 {[%emt 0:03:11]} axb5 {[%emt 0:01:05]} 13. Bxb5 {[%emt 0:00:59]} Bb7 {[%emt 0:04:20]} 14. Nge2 {[%emt 0:02:04]} Nb6 {[%emt 0:00:20]} 15. g4 {[%emt 0:05:15]} Ba6 {[%emt 0:00:23]} 16. Bxb6 {[%emt 0:06:10]} cxb6 {[%emt 0:02:10]} 17. Kb1 {[%emt 0:02:21]} Nd7 {[%emt 0:06:50]} 18. Nc1 {[%emt 0:02:17]} Bxb5 {[%emt 0:00:48]} 19. Nxb5 {[%emt 0:00:31]} Nc5 {[%emt 0:00:06]} 20. Nd3 {[%emt 0:04:06]} Qd7 {[%emt 0:03:26]} 21. Nc3 {[%emt 0:04:02]} Bf6 {[%emt 0:02:03]} 22. h4 {[%emt 0:06:11]} Bd8 {[%emt 0:00:27]} 23. Nb4 {[%emt 0:02:08]} b5 {[%emt 0:20:38]} 24. Nc6 {[%emt 0:11:07]} Qb7 {[%emt 0:05:18]} 25. Ne2 {[%emt 0:06:42]} Qa6 {[%emt 0:04:33]} 26. Nc1 {[%emt 0:01:27]} Bb6 {[%emt 0:04:32]} 27. Rh2 {[%emt 0:07:51]} Qb7 {[%emt 0:17:19]} 28. Re2 {[%emt 0:02:46]} Nd7 {[%emt 0:04:59]} 29. f4 {[%emt 0:01:46]} Ra4 {[%emt 0:06:05]} 30. b3 {[%emt 0:02:14]} Raa8 {[%emt 0:00:07]} 31. h5 {[%emt 0:02:14]} Kg7 {[%emt 0:01:19]} 32. g5 {[%emt 0:05:26]} hxg5 {[%emt 0:00:58]} 33. fxe5 {[%emt 0:01:09]} Nxe5 {[%emt 0:00:22]} 34. Nxe5 {[%emt 0:01:22]} dxe5 {[%emt 0:00:06]} 35. Qxg5 {[%emt 0:00:49]} Bd4 {[%emt 0:01:34]} 36. Nd3 {[%emt 0:05:37]} Rh8 {[%emt 0:04:48]} 37. hxg6 {[%emt 0:02:55]} f6 {[%emt 0:00:12]} 38. Qf5 {[%emt 0:01:39]} Ra6 {[%emt 0:04:33]} 39. Nb4 {[%emt 0:01:16]} Rd6 {[%emt 0:00:08]} 40. Rc2 {[%emt 0:00:00]} Qb6 {[%emt 0:00:00]} 41. Rdc1 {[%emt 0:03:23]} Rhd8 {[%emt 0:04:55]} 42. Rc7+ {[%emt 0:01:31]} 1-0

[Event "FIDE WYCC Girls U14 2023"]
[Site "Montesilvano"]
[Date "2023.11.17"]
[Round "5.14"]
[White "Iordache, Alexia-Andreea"]
[Black "Sachi Jain"]
[Result "0-1"]
[ECO "C77"]
[WhiteElo "1892"]
[BlackElo "1743"]
[Annotator "NA"]
[PlyCount "128"]
[EventDate "2023.11.13"]
[EventType "swiss"]
[EventCountry "ITA"]
[SourceTitle "playchess.com"]
[Source "ChessBase"]
[SourceQuality "1"]
[TimeControl "40/5400+30:1800+30"]

1. e4 {[%emt 0:00:05]} e5 {[%emt 0:00:39]} 2. Nf3 {[%emt 0:00:07]} Nc6 {[%emt 0:00:05]} 3. Bb5 {[%emt 0:00:06]} a6 {[%emt 0:00:20]} 4. Ba4 {[%emt 0:00:07]} Nf6 {[%emt 0:00:34]} 5. Nc3 {[%emt 0:00:06]} Be7 {[%emt 0:00:52]} 6. d3 {[%emt 0:00:15]} b5 {[%emt 0:01:23]} 7. Bb3 {[%emt 0:00:06]} d6 {[%emt 0:00:42]} 8. a3 {[%emt 0:00:48]} h6 {[%emt 0:08:05]} 9. h3 {[%emt 0:01:15]} Na5 {[%emt 0:03:35]} 10. Ba2 {[%emt 0:02:15]} c5 {[%emt 0:00:58]} 11. Bd2 {[%emt 0:11:38]} Qc7 {[%emt 0:09:43]} 12. Nd5 {[%emt 0:02:30]} Nxd5 {[%emt 0:04:57]} 13. Bxd5 {[%emt 0:00:06]} Bb7 {[%emt 0:00:32]} 14. Bxb7 {[%emt 0:06:12]} Nxb7 {[%emt 0:00:07]} 15. Qe2 {[%emt 0:00:28]} Rc8 {[%emt 0:04:44]} 16. Rc1 {[%emt 0:04:05]} O-O {[%emt 0:00:28]} 17. O-O {[%emt 0:09:12]} Nd8 {[%emt 0:00:59]} 18. Nh2 {[%emt 0:00:57]} Ne6 {[%emt 0:03:19]} 19. Qh5 {[%emt 0:04:49]} Bg5 {[%emt 0:10:23]} 20. Bxg5 {[%emt 0:03:28]} hxg5 {[%emt 0:01:17]} 21. Rfe1 {[%emt 0:04:17]} f6 {[%emt 0:09:56]} 22. Nf1 {[%emt 0:04:30]} Qf7 {[%emt 0:04:48]} 23. Qe2 {[%emt 0:05:32]} Nf4 {[%emt 0:06:08]} 24. Qe3 {[%emt 0:02:35]} g6 {[%emt 0:04:36]} 25. Qg3 {[%emt 0:04:21]} Kg7 {[%emt 0:01:04]} 26. Ne3 {[%emt 0:00:45]} Rh8 {[%emt 0:00:59]} 27. a4 {[%emt 0:01:31]} Qd7 {[%emt 0:04:24]} 28. axb5 {[%emt 0:01:01]} axb5 {[%emt 0:00:04]} 29. Ra1 {[%emt 0:00:35]} Ra8 {[%emt 0:00:36]} 30. Qf3 {[%emt 0:06:09]} Qe6 {[%emt 0:04:57]} 31. b3 {[%emt 0:01:35]} Rhd8 {[%emt 0:03:48]} 32. Reb1 {[%emt 0:01:29]} Rf8 {[%emt 0:02:31]} 33. Nd1 {[%emt 0:05:25]} Qd7 {[%emt 0:03:39]} 34. Nc3 {[%emt 0:01:45]} Qb7 {[%emt 0:04:55]} 35. Qg4 {[%emt 0:01:10]} Kf7 {[%emt 0:01:16]} 36. Nd1 {[%emt 0:05:07]} Ne6 {[%emt 0:00:25]} 37. Ne3 {[%emt 0:02:13]} Rxa1 {[%emt 0:00:01]} 38. Rxa1 {[%emt 0:00:14]} Ra8 {[%emt 0:00:01]} 39. Rf1 {[%emt 0:06:37]} Qc8 {[%emt 0:00:23]} 40. h4 {[%emt 0:00:00]} Nd4 {[%emt 0:00:00]} 41. Qxc8 {[%emt 0:04:30]} Rxc8 {[%emt 0:01:22]} 42. Ra1 {[%emt 0:00:23]} gxh4 {[%emt 0:10:18]} 43. Ra7+ {[%emt 0:00:31]} Kg8 {[%emt 0:04:39]} 44. Nd5 {[%emt 0:01:23]} Rf8 {[%emt 0:00:05]} 45. Ne7+ {[%emt 0:03:21]} Kg7 {[%emt 0:01:05]} 46. Nf5+ {[%emt 0:08:34]} Kg8 {[%emt 0:01:58]} 47. Ne3 {[%emt 0:00:19]} Rf7 {[%emt 0:00:24]} 48. Ra6 {[%emt 0:00:08]} Rd7 {[%emt 0:00:47]} 49. Kh2 {[%emt 0:02:21]} Kf7 {[%emt 0:02:56]} 50. Kh3 {[%emt 0:00:26]} f5 {[%emt 0:06:29]} 51. Ra2 {[%emt 0:01:14]} f4 {[%emt 0:01:38]} 52. Nd5 {[%emt 0:01:12]} g5 {[%emt 0:00:01]} 53. Kg4 {[%emt 0:00:51]} Kg6 {[%emt 0:00:01]} 54. Nb6 {[%emt 0:05:21]} Rb7 {[%emt 0:01:25]} 55. Nc8 {[%emt 0:00:43]} h3 {[%emt 0:01:05]} 56. Nxd6 {[%emt 0:04:06]} hxg2 {[%emt 0:00:48]} 57. Ra1 {[%emt 0:00:24]} Rh7 {[%emt 0:00:01]} 58. Nf5 {[%emt 0:00:11]} Rh1 {[%emt 0:00:03]} 59. Ra6+ {[%emt 0:00:21]} Kf7 {[%emt 0:04:10]} 60. Nd6+ {[%emt 0:00:26]} Ke7 {[%emt 0:00:08]} 61. Nf5+ {[%emt 0:00:06]} Nxf5 {[%emt 0:01:02]} 62. Kxf5 {[%emt 0:00:05]} g1=Q {[%emt 0:00:03]} 63. Kxe5 {[%emt 0:00:46]} Qxf2 {[%emt 0:00:02]} 64. Ra7+ {[%emt 0:00:06]} Kd8 {[%emt 0:00:04]} 0-1

[Event "FIDE WYCC Girls U14 2023"]
[Site "Montesilvano"]
[Date "2023.11.17"]
[Round "5.15"]
[White "Caku, Kler"]
[Black "Sosovickova, Martina"]
[Result "1-0"]
[ECO "C45"]
[WhiteElo "1740"]
[BlackElo "1877"]
[Annotator "NA"]
[PlyCount "85"]
[EventDate "2023.11.13"]
[EventType "swiss"]
[EventCountry "ITA"]
[SourceTitle "playchess.com"]
[Source "ChessBase"]
[SourceQuality "1"]
[TimeControl "40/5400+30:1800+30"]

1. e4 {[%emt 0:00:14]} e5 {[%emt 0:00:05]} 2. Nf3 {[%emt 0:00:10]} Nc6 {[%emt 0:00:05]} 3. d4 {[%emt 0:00:06]} exd4 {[%emt 0:00:06]} 4. Nxd4 {[%emt 0:00:08]} Bc5 {[%emt 0:00:10]} 5. Be3 {[%emt 0:00:07]} Qf6 {[%emt 0:00:12]} 6. c3 {[%emt 0:00:23]} Qg6 {[%emt 0:00:07]} 7. Nd2 {[%emt 0:01:19]} Nf6 {[%emt 0:01:26]} 8. Qc2 {[%emt 0:02:17]} Ng4 {[%emt 0:06:52]} 9. Qd3 {[%emt 0:20:03]} Nxe3 {[%emt 0:02:30]} 10. Qxe3 {[%emt 0:00:09]} O-O {[%emt 0:01:04]} 11. N2b3 {[%emt 0:03:47]} Bb6 {[%emt 0:02:56]} 12. O-O-O {[%emt 0:04:42]} Re8 {[%emt 0:04:15]} 13. Bd3 {[%emt 0:05:37]} Ne5 {[%emt 0:03:17]} 14. Bc2 {[%emt 0:02:31]} d6 {[%emt 0:05:28]} 15. h3 {[%emt 0:06:54]} a5 {[%emt 0:05:45]} 16. f4 {[%emt 0:02:24]} Qh6 {[%emt 0:03:59]} 17. Nd2 {[%emt 0:05:11]} Ng6 {[%emt 0:08:48]} 18. Rdf1 {[%emt 0:02:58]} d5 {[%emt 0:04:21]} 19. g4 {[%emt 0:05:34]} Nf8 {[%emt 0:07:22]} 20. g5 {[%emt 0:01:58]} Qd6 {[%emt 0:01:31]} 21. e5 {[%emt 0:01:25]} Qe7 {[%emt 0:00:58]} 22. h4 {[%emt 0:02:27]} c5 {[%emt 0:02:24]} 23. Nb5 {[%emt 0:00:59]} Bd7 {[%emt 0:02:21]} 24. c4 {[%emt 0:02:15]} Bxb5 {[%emt 0:05:31]} 25. cxb5 {[%emt 0:00:11]} Qe6 {[%emt 0:04:35]} 26. h5 {[%emt 0:09:00]} c4 {[%emt 0:04:18]} 27. Qc3 {[%emt 0:05:00]} Rac8 {[%emt 0:02:55]} 28. Nf3 {[%emt 0:01:08]} d4 {[%emt 0:02:36]} 29. Nxd4 {[%emt 0:00:17]} Bxd4 {[%emt 0:00:38]} 30. Qxd4 {[%emt 0:00:05]} c3 {[%emt 0:00:34]} 31. b3 {[%emt 0:08:33]} a4 {[%emt 0:05:46]} 32. g6 {[%emt 0:03:30]} fxg6 {[%emt 0:05:49]} 33. hxg6 {[%emt 0:00:14]} Kh8 {[%emt 0:00:36]} 34. Rd1 {[%emt 0:02:34]} Qg4 {[%emt 0:02:32]} 35. Rdg1 {[%emt 0:01:15]} Qe2 {[%emt 0:00:21]} 36. Re1 {[%emt 0:00:55]} Qxb5 {[%emt 0:01:03]} 37. f5 {[%emt 0:01:29]} Red8 {[%emt 0:01:33]} 38. Rxh7+ {[%emt 0:00:40]} Kg8 {[%emt 0:00:46]} 39. Qh4 {[%emt 0:00:53]} Nxh7 {[%emt 0:00:45]} 40. Qxh7+ {[%emt 0:00:00]} Kf8 {[%emt 0:00:00]} 41. Qh8+ {[%emt 0:00:12]} Ke7 {[%emt 0:00:09]} 42. Qxg7+ {[%emt 0:00:04]} Ke8 {[%emt 0:00:13]} 43. Qf7# 1-0

[Event "FIDE WYCC Girls U14 2023"]
[Site "Montesilvano"]
[Date "2023.11.17"]
[Round "5.16"]
[White "Maklakova, Naomi"]
[Black "Qi, Jenny"]
[Result "*"]
[ECO "A45"]
[WhiteElo "1873"]
[BlackElo "1737"]
[Annotator "NA"]
[PlyCount "91"]
[EventDate "2023.11.13"]
[EventType "swiss"]
[EventCountry "ITA"]
[SourceTitle "playchess.com"]
[Source "ChessBase"]
[SourceQuality "1"]
[TimeControl "40/5400+30:1800+30"]

1. d4 {[%emt 0:00:05]} Nf6 {[%emt 0:00:07]} 2. Nc3 {[%emt 0:00:18]} d5 {[%emt 0:01:40]} 3. Bf4 {[%emt 0:00:07]} g6 {[%emt 0:04:18]} 4. Qd2 {[%emt 0:00:59]} c6 {[%emt 0:04:30]} 5. f3 {[%emt 0:07:27]} Nbd7 {[%emt 0:06:17]} 6. e4 {[%emt 0:07:42]} dxe4 7. fxe4 {[%emt 0:02:02]} Nb6 {[%emt 0:05:03]} 8. O-O-O {[%emt 0:04:26]} Bg7 {[%emt 0:05:49]} 9. Be2 {[%emt 0:05:35]} O-O {[%emt 0:02:57]} 10. Bh6 {[%emt 0:04:58]} Ng4 {[%emt 0:06:38]} 11. Bxg7 {[%emt 0:04:52]} Kxg7 {[%emt 0:00:20]} 12. Qf4 {[%emt 0:00:22]} h5 {[%emt 0:07:45]} 13. h3 {[%emt 0:02:22]} Nf6 {[%emt 0:02:31]} 14. g4 {[%emt 0:04:14]} hxg4 {[%emt 0:03:20]} 15. hxg4 {[%emt 0:00:13]} Rh8 {[%emt 0:02:07]} 16. Nh3 {[%emt 0:01:37]} Be6 {[%emt 0:15:26]} 17. Nf2 {[%emt 0:16:21]} Qd6 {[%emt 0:08:21]} 18. Qd2 {[%emt 0:14:28]} Qg3 {[%emt 0:02:27]} 19. Rdf1 {[%emt 0:02:51]} Rxh1 {[%emt 0:04:14]} 20. Nxh1 {[%emt 0:00:12]} Qh4 {[%emt 0:00:29]} 21. Nf2 {[%emt 0:05:12]} Nxg4 {[%emt 0:02:29]} 22. Bxg4 {[%emt 0:00:28]} Bxg4 {[%emt 0:00:13]} 23. Rh1 {[%emt 0:00:06]} Qg3 {[%emt 0:02:26]} 24. Qh6+ {[%emt 0:02:20]} Kf6 {[%emt 0:00:11]} 25. Rf1 {[%emt 0:02:48]} Bf3 {[%emt 0:01:47]} 26. e5+ {[%emt 0:02:09]} Ke6 {[%emt 0:01:53]} 27. Nfe4 {[%emt 0:00:41]} Bxe4 {[%emt 0:02:03]} 28. Nxe4 {[%emt 0:00:06]} Qg2 {[%emt 0:01:00]} 29. Nc5+ {[%emt 0:00:44]} Kd5 {[%emt 0:00:09]} 30. Qf4 {[%emt 0:00:09]} Rf8 {[%emt 0:01:13]} 31. b3 {[%emt 0:01:11]} g5 {[%emt 0:02:12]} 32. c4+ {[%emt 0:03:25]} Nxc4 {[%emt 0:00:07]} 33. bxc4+ {[%emt 0:00:04]} Kxc4 {[%emt 0:00:09]} 34. Qf2 {[%emt 0:00:06]} Qxf2 {[%emt 0:01:35]} 35. Rxf2 {[%emt 0:00:02]} Kxd4 {[%emt 0:01:49]} 36. Ne6+ {[%emt 0:00:11]} Ke3 {[%emt 0:00:08]} 37. Rf1 {[%emt 0:01:00]} Rg8 {[%emt 0:00:20]} 38. Rxf7 {[%emt 0:00:27]} g4 {[%emt 0:00:21]} 39. Nf4 {[%emt 0:01:03]} Kf2 {[%emt 0:00:55]} 40. Kd2 {[%emt 0:00:00]} g3 {[%emt 0:00:00]} 41. Ne2+ {[%emt 0:05:33]} Kg2 {[%emt 0:01:21]} 42. Rxe7 {[%emt 0:00:23]} Kf3 {[%emt 0:11:30]} 43. Rxb7 {[%emt 0:06:27]} g2 {[%emt 0:02:30]} 44. Ng1+ {[%emt 0:01:20]} Kf2 {[%emt 0:01:29]} 45. Nh3+ {[%emt 0:00:10]} Kg3 {[%emt 0:00:36]} 46. Rb3+ {[%emt 0:00:11]} *

[Event "FIDE WYCC Girls U14 2023"]
[Site "Montesilvano"]
[Date "2023.11.17"]
[Round "5.17"]
[White "Huseynova, Lala"]
[Black "Trunz, Tamila"]
[Result "1-0"]
[ECO "B40"]
[WhiteElo "1867"]
[BlackElo "1732"]
[Annotator "NA"]
[PlyCount "59"]
[EventDate "2023.11.13"]
[EventType "swiss"]
[EventCountry "ITA"]
[SourceTitle "playchess.com"]
[Source "ChessBase"]
[SourceQuality "1"]
[TimeControl "40/5400+30:1800+30"]

1. e4 {[%emt 0:00:03]} c5 {[%emt 0:00:05]} 2. Nf3 {[%emt 0:00:06]} e6 {[%emt 0:00:02]} 3. d4 {[%emt 0:00:04]} cxd4 {[%emt 0:00:04]} 4. Nxd4 {[%emt 0:00:03]} Nf6 {[%emt 0:00:23]} 5. Nc3 {[%emt 0:00:13]} Nc6 {[%emt 0:00:06]} 6. Ndb5 {[%emt 0:00:08]} Bc5 {[%emt 0:00:10]} 7. Bf4 {[%emt 0:10:35]} O-O {[%emt 0:00:11]} 8. Bc7 {[%emt 0:01:15]} Qe7 {[%emt 0:00:06]} 9. Bd6 {[%emt 0:00:11]} Bxd6 {[%emt 0:00:05]} 10. Qxd6 {[%emt 0:00:24]} Qd8 {[%emt 0:14:50]} 11. Be2 {[%emt 0:17:41]} Ne8 {[%emt 0:00:58]} 12. Qd2 {[%emt 0:01:59]} a6 {[%emt 0:06:54]} 13. Nd6 {[%emt 0:02:41]} Nxd6 {[%emt 0:00:52]} 14. Qxd6 {[%emt 0:00:05]} f5 {[%emt 0:05:23]} 15. exf5 {[%emt 0:06:11]} Rxf5 {[%emt 0:00:43]} 16. O-O {[%emt 0:00:20]} b5 {[%emt 0:05:49]} 17. Bg4 {[%emt 0:04:04]} Rf6 {[%emt 0:05:07]} 18. Rad1 {[%emt 0:11:43]} Qb6 {[%emt 0:02:59]} 19. Ne4 {[%emt 0:04:39]} Rg6 {[%emt 0:03:42]} 20. Bf3 {[%emt 0:08:01]} e5 {[%emt 0:12:45]} 21. Qd5+ {[%emt 0:00:53]} Kh8 {[%emt 0:10:19]} 22. Bh5 {[%emt 0:08:59]} Re6 {[%emt 0:13:02]} 23. Ng5 {[%emt 0:01:21]} g6 {[%emt 0:09:44]} 24. Nxe6 {[%emt 0:00:24]} dxe6 {[%emt 0:00:04]} 25. Qf3 {[%emt 0:00:47]} Kg7 {[%emt 0:00:27]} 26. Rd6 {[%emt 0:02:04]} Bb7 {[%emt 0:05:20]} 27. Rd7+ {[%emt 0:01:11]} Kh6 {[%emt 0:00:08]} 28. Rxh7+ {[%emt 0:01:16]} Kxh7 {[%emt 0:01:23]} 29. Qf7+ {[%emt 0:00:03]} Kh8 {[%emt 0:00:17]} 30. Bxg6 {[%emt 0:00:02]} 1-0

[Event "FIDE WYCC Girls U14 2023"]
[Site "Montesilvano"]
[Date "2023.11.17"]
[Round "5.18"]
[White "Zagorac, Lara"]
[Black "Aswinika Mani R"]
[Result "1-0"]
[ECO "D02"]
[WhiteElo "1866"]
[BlackElo "1472"]
[Annotator "NA"]
[PlyCount "103"]
[EventDate "2023.11.13"]
[EventType "swiss"]
[EventCountry "ITA"]
[SourceTitle "playchess.com"]
[Source "ChessBase"]
[SourceQuality "1"]
[TimeControl "40/5400+30:1800+30"]

1. Nf3 {[%emt 0:00:08]} d5 {[%emt 0:01:18]} 2. d4 {[%emt 0:00:28]} Nf6 {[%emt 0:00:15]} 3. c4 {[%emt 0:00:41]} e6 {[%emt 0:01:34]} 4. g3 {[%emt 0:00:30]} c6 {[%emt 0:04:48]} 5. Bg2 {[%emt 0:01:01]} Bd6 {[%emt 0:01:58]} 6. O-O {[%emt 0:02:07]} O-O {[%emt 0:03:43]} 7. Qc2 {[%emt 0:03:05]} Nbd7 {[%emt 0:06:09]} 8. Rd1 {[%emt 0:09:17]} b6 {[%emt 0:06:13]} 9. b3 {[%emt 0:01:56]} Bb7 {[%emt 0:02:54]} 10. Nc3 {[%emt 0:00:53]} Rc8 {[%emt 0:07:09]} 11. e4 {[%emt 0:10:42]} dxe4 {[%emt 0:05:24]} 12. Nxe4 {[%emt 0:03:44]} Nxe4 {[%emt 0:02:02]} 13. Qxe4 {[%emt 0:00:15]} Nf6 {[%emt 0:00:31]} 14. Qe2 {[%emt 0:02:06]} Qe7 {[%emt 0:11:15]} 15. Be3 {[%emt 0:08:01]} c5 {[%emt 0:06:19]} 16. Rd2 {[%emt 0:02:43]} Ne4 {[%emt 0:05:49]} 17. Rd3 {[%emt 0:02:25]} cxd4 {[%emt 0:01:03]} 18. Nxd4 {[%emt 0:03:22]} Nc5 {[%emt 0:01:33]} 19. Rd2 {[%emt 0:07:44]} Bxg2 {[%emt 0:01:20]} 20. Kxg2 {[%emt 0:00:31]} Ne4 {[%emt 0:05:57]} 21. Rc2 {[%emt 0:01:53]} f5 {[%emt 0:00:27]} 22. f3 {[%emt 0:02:21]} Nc5 {[%emt 0:04:48]} 23. Rd1 {[%emt 0:04:09]} a6 {[%emt 0:06:52]} 24. Rcd2 {[%emt 0:01:33]} f4 {[%emt 0:02:04]} 25. Bf2 {[%emt 0:02:19]} e5 {[%emt 0:03:37]} 26. Nc2 {[%emt 0:12:21]} Rcd8 {[%emt 0:01:29]} 27. Bxc5 {[%emt 0:02:43]} bxc5 {[%emt 0:00:50]} 28. Qe4 {[%emt 0:00:57]} Rf6 {[%emt 0:02:02]} 29. Rd5 {[%emt 0:03:21]} Rg6 {[%emt 0:02:32]} 30. b4 {[%emt 0:01:07]} Qg5 {[%emt 0:01:29]} 31. bxc5 {[%emt 0:05:18]} fxg3 {[%emt 0:00:38]} 32. h4 {[%emt 0:02:05]} Qh6 {[%emt 0:01:37]} 33. Rxd6 {[%emt 0:02:22]} Rf8 {[%emt 0:00:16]} 34. Rxg6 {[%emt 0:00:40]} hxg6 {[%emt 0:00:06]} 35. Qg4 {[%emt 0:01:06]} e4 {[%emt 0:00:53]} 36. Qg5 {[%emt 0:01:01]} exf3+ {[%emt 0:00:52]} 37. Kxg3 {[%emt 0:00:14]} f2 {[%emt 0:00:38]} 38. Qxh6 {[%emt 0:01:15]} gxh6 {[%emt 0:00:04]} 39. Rf1 {[%emt 0:00:34]} Rc8 {[%emt 0:00:22]} 40. Rxf2 {[%emt 0:00:00]} Rxc5 {[%emt 0:00:00]} 41. Ne3 {[%emt 0:00:44]} Kg7 {[%emt 0:00:29]} 42. Kf3 {[%emt 0:00:57]} Kf6 {[%emt 0:00:49]} 43. Ke4+ {[%emt 0:00:14]} Ke6 {[%emt 0:00:10]} 44. Kd4 {[%emt 0:00:46]} Rh5 {[%emt 0:00:09]} 45. Ng2 {[%emt 0:01:12]} g5 {[%emt 0:00:15]} 46. c5 {[%emt 0:00:34]} Kd7 {[%emt 0:00:17]} 47. Rf5 {[%emt 0:00:34]} a5 {[%emt 0:00:18]} 48. Kd5 {[%emt 0:00:18]} a4 {[%emt 0:00:05]} 49. c6+ {[%emt 0:00:14]} Kc7 {[%emt 0:00:04]} 50. Kc5 {[%emt 0:00:21]} a3 {[%emt 0:00:05]} 51. Rf7+ {[%emt 0:00:13]} Kc8 {[%emt 0:00:05]} 52. Kd6 {[%emt 0:00:25]} 1-0